fUSD/lending_fUSD_20250205
["ID","MTS","AMOUNT","RATE_DAILY","PERIOD"]
[351730395,1738769600204,-723.45,9.999e-05,2]
[351730396,1738769600227,-500.0,9.999e-05,2]
[351730397,1738769600251,-500.0,9.999e-05,2]
[351730398,1738769600274,-500.0,9.999e-05,2]
[351730399,1738769600297,-500.68460173,9.999e-05,2]
[351730400,1738769600321,-633.81,9.999e-05,2]
[351730401,1738769600344,-500.0,9.999e-05,2]
[351730402,1738769600369,-2733.1,9.999e-05,2]
[351730403,1738769600393,-504.86958381,9.999e-05,2]
[351730404,1738769600417,-500.0,9.999e-05,2]
[351730405,1738769600441,-500.0,9.999e-05,2]
[351730406,1738769600470,-2359.11,9.999e-05,2]
[351730407,1738769600495,-2243.11,9.999e-05,2]
[351730408,1738769600518,-500.0,9.999e-05,2]
[351730409,1738769600544,-500.0,9.999e-05,2]
[351730410,1738769600567,-500.0,9.999e-05,2]
[351730411,1738769600591,-500.0,9.999e-05,2]
[351730412,1738769600615,-1821.04,9.999e-05,2]
[351730413,1738769600640,-1032.64,9.999e-05,2]
[351730414,1738769600664,-500.0,9.999e-05,2]
[351730415,1738769600690,-500.0,9.999e-05,2]
[351730416,1738769600715,-500.0,9.999e-05,2]
[351730417,1738769600742,-736.93,9.999e-05,2]
[351730418,1738769600768,-500.0,9.999e-05,2]
[351730419,1738769600792,-500.51325432,9.999e-05,2]
[351730420,1738769600822,-1113.35,9.999e-05,2]
[351730421,1738769600848,-2736.27,9.999e-05,2]
[351730422,1738769600874,-500.0,9.999e-05,2]
[351730423,1738769600900,-556.41401008,9.999e-05,2]
[351730424,1738769601170,-500.0,9.999e-05,2]
[351730425,1738769601197,-532.43,9.999e-05,2]
[351730426,1738769601229,-500.0,9.999e-05,2]
[351730427,1738769601254,-500.0,9.999e-05,2]
[351730428,1738769601280,-1246.66,9.999e-05,2]
[351730429,1738769601307,-2648.59,9.999e-05,2]
[351730430,1738769601331,-312.01,9.999e-05,2]
[351730431,1738769601355,-300.0,9.999e-05,2]
[351730432,1738769601383,-736.41,9.999e-05,2]
[351730433,1738769601408,-500.0,9.999e-05,2]
[351730434,1738769601433,-271.86391101,9.999e-05,2]
[351730435,1738769601460,-1744.72,9.999e-05,2]
[351730436,1738769601486,-500.0,9.999e-05,2]
[351730437,1738769601513,-2408.09,9.999e-05,2]
[351730438,1738769601539,-1685.62,9.999e-05,2]
[351730439,1738769601562,-500.0,9.999e-05,2]
[351730440,1738769601587,-500.0,9.999e-05,2]
[351730441,1738769601612,-500.0,9.999e-05,2]
[351730442,1738769601635,-500.0,9.999e-05,2]
[351730443,1738769601659,-249.11139155,9.999e-05,2]
[351730444,1738769601686,-500.33690449,9.999e-05,2]
[351730445,1738769601711,-2112.25,9.999e-05,2]
[351730446,1738769601737,-714.15,9.999e-05,2]
[351730447,1738769601763,-1339.21,9.999e-05,2]
[351730448,1738769601787,-500.0,9.999e-05,2]
[351730449,1738769601812,-577.15,9.999e-05,2]
[351730450,1738769601836,-500.0,9.999e-05,2]
[351730451,1738769601862,-1279.0,0.0001,2]
[351730452,1738769601887,-367996.92310259,0.0001,2]
[351730453,1738769601913,-200.0,0.0001,5]
[351730454,1738769601938,-200.0,0.0001,5]
[351730455,1738769601964,-173980.10085465,0.0001,2]
[351730456,1738769604533,-1500.0,9.8e-05,3]
[351730457,1738769604558,-1800.0,9.9e-05,3]
[351730458,1738769604584,-291.92,9.998e-05,2]
[351730459,1738769604607,-500.0,9.998e-05,2]
[351730460,1738769604630,-500.0,9.998e-05,2]
[351730461,1738769604655,-500.0,9.998e-05,2]
[351730462,1738769604682,-500.0,9.998e-05,2]
[351730463,1738769604707,-500.0,9.999e-05,2]
[351730464,1738769604733,-500.0,9.999e-05,2]
[351730465,1738769604759,-500.0,9.999e-05,2]
[351730466,1738769604783,-500.0,9.999e-05,2]
[351730467,1738769604806,-500.0,9.999e-05,2]
[351730468,1738769605052,-500.0,9.999e-05,2]
[351730469,1738769605085,-500.0,9.999e-05,2]
[351730470,1738769605110,-1149.0,0.0001,2]
[351730471,1738769605135,-989759.08,0.0001,2]
[351730473,1738769616261,-522.67,9.998e-05,2]
[351730474,1738769616285,-500.0,9.998e-05,2]
[351730475,1738769616310,-1084.25,9.998e-05,2]
[351730476,1738769616332,-500.0,9.998e-05,2]
[351730477,1738769616355,-500.0,9.998e-05,2]
[351730478,1738769616378,-975.11,9.999e-05,2]
[351730479,1738769616400,-500.0,9.999e-05,2]
[351730480,1738769616424,-500.0,9.999e-05,2]
[351730481,1738769616446,-1378.32,9.999e-05,2]
[351730482,1738769616469,-500.0,9.999e-05,2]
[351730483,1738769616493,-500.0,9.999e-05,2]
[351730484,1738769616517,-510.29,9.999e-05,2]
[351730485,1738769616539,-1033.0,0.0001,2]
[351730486,1738769616562,-183070.19305125,0.0001,2]
[351730487,1738769616584,-15867.21213221,0.0001,2]
[351730488,1738769616606,-2843.12984423,0.0001,2]
[351730489,1738769616627,-53173.79031727,0.0001,2]
[351730490,1738769616653,-736042.03465504,0.0001,2]
[351730492,1738769630479,-500.0,9.863e-05,2]
[351730493,1738769630504,-500.0,9.998e-05,2]
[351730494,1738769630528,-936.31,9.998e-05,2]
[351730495,1738769630553,-2684.64,9.998e-05,2]
[351730496,1738769630578,-2048.72,9.998e-05,2]
[351730497,1738769630927,-500.0,9.998e-05,2]
[351730498,1738769630954,-500.0,9.998e-05,2]
[351730499,1738769630979,-500.0,9.999e-05,2]
[351730500,1738769631007,-1932.2,9.999e-05,2]
[351730501,1738769631031,-500.0,9.999e-05,2]
[351730502,1738769631055,-1260.2,9.999e-05,2]
[351730503,1738769631080,-3344.5,9.999e-05,2]
[351730504,1738769631103,-772.29,9.999e-05,2]
[351730505,1738769631125,-939.0,0.0001,2]
[351730506,1738769631149,-983082.14,0.0001,2]
[351730507,1738769703581,158.0,0.0001,30]
[351730508,1738769703922,158.0,0.00012,30]
[351730509,1738769704820,150.0,0.0001411,60]
[351730512,1738770003629,158.0,0.0001,30]
[351730514,1738770132482,161.49,7.124e-05,2]
[351730515,1738770303278,158.0,0.0001,30]
[351730517,1738770513526,-158.0,0.00014,30]
[351730518,1738770513552,-153.702068,0.00014602,31]
[351730519,1738770513580,-4835.84,0.000149,31]
[351730520,1738770513607,-4835.84,0.000149,31]
[351730521,1738770513632,-4835.84,0.000149,31]
[351730522,1738770513658,-2180.777932,0.000149,31]
[351730523,1738770603406,158.0,0.0001,30]
[351730527,1738770632436,-1632.94,8.219e-05,2]
[351730528,1738770632446,-1239.0375,8.256e-05,2]
[351730529,1738770632456,-200.0,8.523e-05,2]
[351730530,1738770632466,-239.45,8.523e-05,2]
[351730531,1738770632476,-150.0,8.685e-05,2]
[351730532,1738770632485,-150.0,8.698e-05,2]
[351730533,1738770632494,-300.0,8.698e-05,2]
[351730534,1738770632504,-2671.48447962,8.699e-05,2]
[351730535,1738770632516,-9799.75192,8.699e-05,2]
[351730536,1738770632527,-866.6634,8.699e-05,2]
[351730537,1738770632539,-6483.82591368,8.699e-05,2]
[351730608,1738770635432,-4785.5630867,8.699e-05,2]
[351730609,1738770635441,-4158.9446,8.699e-05,2]
[351730610,1738770635450,-1775.7186,8.699e-05,2]
[351730611,1738770635460,-221.7885,8.699e-05,2]
[351730612,1738770635469,-312.2127,8.699e-05,2]
[351730613,1738770635479,-1080.9986,8.699e-05,2]
[351730614,1738770635488,-3880.6364,8.699e-05,2]
[351730615,1738770635498,-155.453845,8.799e-05,2]
[351730616,1738770635507,-295.94,8.835e-05,2]
[351730617,1738770635517,-500.0,8.835e-05,2]
[351730618,1738770635527,-500.0,8.835e-05,2]
[351730619,1738770635536,-392.47,8.835e-05,2]
[351730620,1738770635545,-272.41617942,8.835e-05,2]
[351730621,1738770635555,-1109.86,8.835e-05,2]
[351730622,1738770635564,-601.45,8.835e-05,2]
[351730623,1738770635574,-651.5,8.835e-05,2]
[351730624,1738770635584,-2690.41,8.835e-05,2]
[351730625,1738770635597,-500.0,8.835e-05,2]
[351730626,1738770635607,-1927.8,8.835e-05,2]
[351730627,1738770635616,-1684.83,8.835e-05,2]
[351730628,1738770635626,-500.0,8.835e-05,2]
[351730629,1738770635635,-1968.47,8.835e-05,2]
[351730630,1738770635645,-1487.65,8.835e-05,2]
[351730631,1738770635654,-500.0,8.835e-05,2]
[351730632,1738770635664,-500.0,8.835e-05,2]
[351730633,1738770635673,-1200.92,8.835e-05,2]
[351730634,1738770635683,-2590.26,8.835e-05,2]
[351730635,1738770635692,-3157.9,8.835e-05,2]
[351730636,1738770635702,-1135.45,8.835e-05,2]
[351730637,1738770635711,-553.43,8.835e-05,2]
[351730638,1738770635721,-2633.64,8.835e-05,2]
[351730639,1738770635731,-500.0,8.835e-05,2]
[351730640,1738770635740,-1119.78,8.835e-05,2]
[351730641,1738770635749,-1006.46,8.835e-05,2]
[351730642,1738770635758,-500.0,8.835e-05,2]
[351730643,1738770635768,-500.0,8.835e-05,2]
[351730644,1738770635777,-500.0,8.835e-05,2]
[351730645,1738770635786,-500.0,8.835e-05,2]
[351730646,1738770635795,-500.0,8.835e-05,2]
[351730647,1738770635805,-1737.61,8.835e-05,2]
[351730648,1738770635814,-500.0,8.835e-05,2]
[351730649,1738770635824,-2022.8,8.835e-05,2]
[351730650,1738770635833,-500.0,8.835e-05,2]
[351730651,1738770635844,-500.0,8.835e-05,2]
[351730652,1738770635853,-500.0,8.835e-05,2]
[351730653,1738770635863,-500.0,8.835e-05,2]
[351730654,1738770635872,-668.09,8.835e-05,2]
[351730655,1738770635881,-587.82,8.835e-05,2]
[351730656,1738770635890,-620.0991532,8.835e-05,2]
[351730657,1738770635899,-272.41617941,8.836e-05,2]
[351730658,1738770635909,-1303.0215,8.836e-05,2]
[351730659,1738770635918,-14581.6484,8.836e-05,2]
[351730660,1738770635928,-4008.1393,8.836e-05,2]
[351730661,1738770635937,-10841.0353,8.836e-05,2]
[351730662,1738770635947,-991.8561,8.836e-05,2]
[351730663,1738770635956,-525.0742,8.836e-05,2]
[351730664,1738770635966,-36244.4888,8.836e-05,2]
[351730665,1738770635976,-20306.3466,8.836e-05,2]
[351730666,1738770635985,-33918.6808,8.836e-05,2]
[351730667,1738770635996,-804.6449,8.836e-05,2]
[351730668,1738770636009,-1004.6704,8.836e-05,2]
[351730669,1738770636019,-852.5483,8.836e-05,2]
[351730670,1738770636029,-83226.3376,8.836e-05,2]
[351730671,1738770636039,-1220.9272,8.836e-05,2]
[351730672,1738770636049,-272.41617941,8.836e-05,2]
[351730673,1738770636058,-500.0,8.851e-05,2]
[351730674,1738770636067,-1000.0,8.851e-05,2]
[351730675,1738770636078,-2500.0,8.851e-05,2]
[351730676,1738770636088,-193.12,8.852e-05,2]
[351730677,1738770636099,-575.85,8.877e-05,2]
[351730678,1738770636109,-1109.86,8.972e-05,2]
[351730679,1738770636119,-601.45,8.972e-05,2]
[351730680,1738770636128,-651.5,8.972e-05,2]
[351730681,1738770636138,-2690.41,8.972e-05,2]
[351730682,1738770636148,-500.0,8.972e-05,2]
[351730683,1738770636157,-1927.8,8.972e-05,2]
[351730684,1738770636174,-1684.83,8.972e-05,2]
[351730685,1738770636183,-500.0,8.972e-05,2]
[351730686,1738770636192,-1968.47,8.972e-05,2]
[351730687,1738770636202,-1487.65,8.972e-05,2]
[351730688,1738770636212,-500.0,8.972e-05,2]
[351730689,1738770636222,-500.0,8.972e-05,2]
[351730690,1738770636232,-1200.92,8.972e-05,2]
[351730691,1738770636241,-2590.26,8.972e-05,2]
[351730692,1738770636251,-3157.9,8.972e-05,2]
[351730693,1738770636261,-1135.45,8.972e-05,2]
[351730694,1738770636271,-553.43,8.972e-05,2]
[351730695,1738770636280,-2633.64,8.972e-05,2]
[351730696,1738770636289,-500.0,8.972e-05,2]
[351730697,1738770636299,-1119.78,8.972e-05,2]
[351730698,1738770636308,-1006.46,8.972e-05,2]
[351730699,1738770636318,-500.0,8.972e-05,2]
[351730700,1738770636327,-500.0,8.972e-05,2]
[351730701,1738770636337,-500.0,8.972e-05,2]
[351730702,1738770636349,-500.0,8.972e-05,2]
[351730703,1738770636358,-1737.61,8.972e-05,2]
[351730704,1738770636368,-2022.8,8.972e-05,2]
[351730705,1738770636377,-500.0,8.972e-05,2]
[351730706,1738770636386,-668.09,8.972e-05,2]
[351730707,1738770636395,-587.82,8.972e-05,2]
[351730708,1738770636405,-12755.4418,8.973e-05,2]
[351730709,1738770636414,-150.0,9e-05,2]
[351730710,1738770636424,-150.0,9e-05,2]
[351730711,1738770636434,-1000.0,9.045e-05,2]
[351730712,1738770636443,-1109.86,9.109e-05,2]
[351730713,1738770636453,-601.45,9.109e-05,2]
[351730714,1738770636462,-651.5,9.109e-05,2]
[351730715,1738770636471,-2690.41,9.109e-05,2]
[351730716,1738770636480,-500.0,9.109e-05,2]
[351730717,1738770636490,-1927.8,9.109e-05,2]
[351730718,1738770636499,-1684.83,9.109e-05,2]
[351730719,1738770636508,-480.73,9.109e-05,2]
[351730720,1738770636518,-1968.47,9.109e-05,2]
[351730721,1738770636527,-1487.65,9.109e-05,2]
[351730722,1738770636536,-500.0,9.109e-05,2]
[351730723,1738770636546,-500.0,9.109e-05,2]
[351730724,1738770636556,-1200.92,9.109e-05,2]
[351730725,1738770636565,-2590.26,9.109e-05,2]
[351730726,1738770636575,-3157.9,9.109e-05,2]
[351730727,1738770636584,-1135.45,9.109e-05,2]
[351730728,1738770636595,-553.43,9.109e-05,2]
[351730729,1738770636604,-2633.64,9.109e-05,2]
[351730730,1738770636614,-500.0,9.109e-05,2]
[351730731,1738770636623,-1119.78,9.109e-05,2]
[351730732,1738770636632,-1006.46,9.109e-05,2]
[351730733,1738770636642,-500.0,9.109e-05,2]
[351730734,1738770636653,-490.16324271,9.109e-05,2]
[351730735,1738770636663,-500.0,9.109e-05,2]
[351730736,1738770636672,-500.0,9.109e-05,2]
[351730737,1738770636681,-1737.61,9.109e-05,2]
[351730738,1738770636690,-2022.8,9.109e-05,2]
[351730739,1738770636700,-500.0,9.109e-05,2]
[351730740,1738770636709,-668.09,9.109e-05,2]
[351730741,1738770636718,-587.82,9.109e-05,2]
[351730742,1738770636730,-290.0,9.125e-05,2]
[351730743,1738770636739,-199.06,9.142e-05,2]
[351730744,1738770636748,-1109.86,9.246e-05,2]
[351730745,1738770636758,-601.45,9.246e-05,2]
[351730746,1738770636767,-651.5,9.246e-05,2]
[351730747,1738770636777,-2690.41,9.246e-05,2]
[351730748,1738770636786,-500.0,9.246e-05,2]
[351730749,1738770636795,-1927.8,9.246e-05,2]
[351730750,1738770636804,-1684.83,9.246e-05,2]
[351730751,1738770636813,-1968.47,9.246e-05,2]
[351730752,1738770636823,-1487.65,9.246e-05,2]
[351730753,1738770636832,-500.0,9.246e-05,2]
[351730754,1738770636842,-500.0,9.246e-05,2]
[351730755,1738770636851,-1200.92,9.246e-05,2]
[351730756,1738770636861,-2590.26,9.246e-05,2]
[351730757,1738770636870,-3157.9,9.246e-05,2]
[351730758,1738770636880,-1135.45,9.246e-05,2]
[351730759,1738770636889,-553.43,9.246e-05,2]
[351730760,1738770636898,-2633.64,9.246e-05,2]
[351730761,1738770636908,-272.94,9.246e-05,2]
[351730762,1738770636917,-1119.78,9.246e-05,2]
[351730763,1738770636926,-1006.46,9.246e-05,2]
[351730764,1738770636936,-500.0,9.246e-05,2]
[351730765,1738770636946,-500.0,9.246e-05,2]
[351730766,1738770636955,-327.45,9.246e-05,2]
[351730767,1738770636965,-1737.61,9.246e-05,2]
[351730768,1738770636974,-2022.8,9.246e-05,2]
[351730769,1738770636984,-500.0,9.246e-05,2]
[351730770,1738770636994,-668.09,9.246e-05,2]
[351730771,1738770637007,-587.82,9.246e-05,2]
[351730772,1738770637016,-150.0,9.333e-05,2]
[351730773,1738770637025,-155.453845,9.338e-05,2]
[351730774,1738770637034,-1109.86,9.383e-05,2]
[351730775,1738770637043,-601.45,9.383e-05,2]
[351730776,1738770637053,-651.5,9.383e-05,2]
[351730777,1738770637062,-2690.41,9.383e-05,2]
[351730778,1738770637071,-500.0,9.383e-05,2]
[351730779,1738770637082,-1927.8,9.383e-05,2]
[351730780,1738770637093,-1684.83,9.383e-05,2]
[351730781,1738770637102,-1968.47,9.383e-05,2]
[351730782,1738770637112,-1487.65,9.383e-05,2]
[351730783,1738770637121,-500.0,9.383e-05,2]
[351730784,1738770637131,-500.0,9.383e-05,2]
[351730785,1738770637140,-1200.92,9.383e-05,2]
[351730786,1738770637149,-2590.26,9.383e-05,2]
[351730787,1738770637158,-3157.9,9.383e-05,2]
[351730788,1738770637167,-1135.45,9.383e-05,2]
[351730789,1738770637178,-553.43,9.383e-05,2]
[351730790,1738770637187,-2633.64,9.383e-05,2]
[351730791,1738770637196,-1119.78,9.383e-05,2]
[351730792,1738770637206,-1006.46,9.383e-05,2]
[351730793,1738770637215,-500.0,9.383e-05,2]
[351730794,1738770637225,-500.0,9.383e-05,2]
[351730795,1738770637234,-1737.61,9.383e-05,2]
[351730796,1738770637244,-2022.8,9.383e-05,2]
[351730797,1738770637253,-500.0,9.383e-05,2]
[351730798,1738770637263,-668.09,9.383e-05,2]
[351730799,1738770637272,-587.82,9.383e-05,2]
[351730800,1738770637282,-1109.86,9.52e-05,2]
[351730801,1738770637291,-601.45,9.52e-05,2]
[351730802,1738770637300,-651.5,9.52e-05,2]
[351730803,1738770637310,-2690.41,9.52e-05,2]
[351730804,1738770637319,-500.0,9.52e-05,2]
[351730805,1738770637329,-1927.8,9.52e-05,2]
[351730806,1738770637338,-1684.83,9.52e-05,2]
[351730807,1738770637353,-1968.47,9.52e-05,2]
[351730808,1738770637363,-1487.65,9.52e-05,2]
[351730809,1738770637372,-500.0,9.52e-05,2]
[351730810,1738770637382,-500.0,9.52e-05,2]
[351730811,1738770637391,-1200.92,9.52e-05,2]
[351730812,1738770637401,-2590.26,9.52e-05,2]
[351730813,1738770637411,-3157.9,9.52e-05,2]
[351730814,1738770637420,-1135.45,9.52e-05,2]
[351730815,1738770637430,-553.43,9.52e-05,2]
[351730816,1738770637439,-2633.64,9.52e-05,2]
[351730817,1738770637448,-1119.78,9.52e-05,2]
[351730818,1738770637458,-1006.46,9.52e-05,2]
[351730819,1738770637467,-500.0,9.52e-05,2]
[351730820,1738770637477,-500.0,9.52e-05,2]
[351730821,1738770637487,-1737.61,9.52e-05,2]
[351730822,1738770637496,-2022.8,9.52e-05,2]
[351730823,1738770637506,-426.97973317,9.52e-05,2]
[351730824,1738770637515,-668.09,9.52e-05,2]
[351730825,1738770637524,-587.82,9.52e-05,2]
[351730826,1738770637533,-500.0,9.562e-05,2]
[351730827,1738770637542,-255.0,9.568e-05,2]
[351730828,1738770637551,-420.0,9.568e-05,2]
[351730829,1738770637560,-500.0,9.6e-05,3]
[351730830,1738770637569,-155.453845,9.612e-05,2]
[351730831,1738770637579,-1109.86,9.657e-05,2]
[351730832,1738770637589,-601.45,9.657e-05,2]
[351730833,1738770637601,-651.5,9.657e-05,2]
[351730834,1738770637611,-2690.41,9.657e-05,2]
[351730835,1738770637620,-500.0,9.657e-05,2]
[351730836,1738770637629,-1927.8,9.657e-05,2]
[351730837,1738770637639,-1684.83,9.657e-05,2]
[351730838,1738770637648,-1968.47,9.657e-05,2]
[351730839,1738770637658,-1487.65,9.657e-05,2]
[351730840,1738770637668,-618.14,9.657e-05,2]
[351730841,1738770637678,-500.0,9.657e-05,2]
[351730842,1738770637688,-1200.92,9.657e-05,2]
[351730843,1738770637697,-2590.26,9.657e-05,2]
[351730844,1738770637706,-3157.9,9.657e-05,2]
[351730845,1738770637716,-1135.45,9.657e-05,2]
[351730846,1738770637726,-553.43,9.657e-05,2]
[351730847,1738770637736,-2633.64,9.657e-05,2]
[351730848,1738770637745,-1119.78,9.657e-05,2]
[351730849,1738770637754,-1006.46,9.657e-05,2]
[351730850,1738770637764,-500.0,9.657e-05,2]
[351730851,1738770637773,-500.0,9.657e-05,2]
[351730852,1738770637783,-1737.61,9.657e-05,2]
[351730853,1738770637792,-2022.8,9.657e-05,2]
[351730854,1738770637802,-668.09,9.657e-05,2]
[351730855,1738770637811,-587.82,9.657e-05,2]
[351730856,1738770637820,-150.0,9.667e-05,2]
[351730857,1738770637829,-1100.0,9.7e-05,3]
[351730858,1738770637839,-321.36,9.788e-05,2]
[351730859,1738770637850,-1109.86,9.794e-05,2]
[351730860,1738770637859,-601.45,9.794e-05,2]
[351730861,1738770637869,-651.5,9.794e-05,2]
[351730862,1738770637878,-2690.41,9.794e-05,2]
[351730863,1738770637888,-500.0,9.794e-05,2]
[351730865,1738770637897,-1927.8,9.794e-05,2]
[351730867,1738770637906,-1684.83,9.794e-05,2]
[351730870,1738770637916,-1968.47,9.794e-05,2]
[351730872,1738770637925,-1487.65,9.794e-05,2]
[351730873,1738770637934,-607.35,9.794e-05,2]
[351730874,1738770637944,-1200.92,9.794e-05,2]
[351730875,1738770637953,-2590.26,9.794e-05,2]
[351730876,1738770637963,-3157.9,9.794e-05,2]
[351730877,1738770637972,-1135.45,9.794e-05,2]
[351730878,1738770637981,-553.43,9.794e-05,2]
[351730879,1738770637991,-2633.64,9.794e-05,2]
[351730880,1738770638001,-1119.78,9.794e-05,2]
[351730881,1738770638014,-1006.46,9.794e-05,2]
[351730882,1738770638024,-500.0,9.794e-05,2]
[351730883,1738770638033,-553.91,9.794e-05,2]
[351730884,1738770638043,-1737.61,9.794e-05,2]
[351730885,1738770638053,-2022.8,9.794e-05,2]
[351730886,1738770638063,-668.09,9.794e-05,2]
[351730887,1738770638072,-587.82,9.794e-05,2]
[351730888,1738770638082,-1600.0,9.8e-05,3]
[351730889,1738770638092,-626.622362,9.8e-05,2]
[351730890,1738770638102,-150.0,9.895e-05,2]
[351730891,1738770638112,-3057.502,9.895e-05,2]
[351730892,1738770638122,-2200.0,9.9e-05,3]
[351730893,1738770638131,-5000.0,9.9e-05,2]
[351730894,1738770638141,-7803.65677162,9.931e-05,2]
[351730895,1738770638151,-1109.86,9.931e-05,2]
[351730896,1738770638161,-601.45,9.931e-05,2]
[351730897,1738770638171,-651.5,9.931e-05,2]
[351730898,1738770638181,-2690.41,9.931e-05,2]
[351730899,1738770638191,-500.0,9.931e-05,2]
[351730900,1738770638201,-1927.8,9.931e-05,2]
[351730901,1738770638212,-1684.83,9.931e-05,2]
[351730902,1738770638222,-1968.47,9.931e-05,2]
[351730903,1738770638232,-1487.65,9.931e-05,2]
[351730904,1738770638242,-1200.92,9.931e-05,2]
[351730905,1738770638252,-2590.26,9.931e-05,2]
[351730906,1738770638261,-3157.9,9.931e-05,2]
[351730907,1738770638271,-1135.45,9.931e-05,2]
[351730908,1738770638281,-553.43,9.931e-05,2]
[351730909,1738770638291,-2633.64,9.931e-05,2]
[351730910,1738770638301,-1119.78,9.931e-05,2]
[351730911,1738770638311,-1006.46,9.931e-05,2]
[351730912,1738770638321,-500.0,9.931e-05,2]
[351730913,1738770638330,-1737.61,9.931e-05,2]
[351730914,1738770638340,-2022.8,9.931e-05,2]
[351730915,1738770638354,-668.09,9.931e-05,2]
[351730916,1738770638364,-587.82,9.931e-05,2]
[351730917,1738770638374,-2366.52180432,9.932e-05,2]
[351730918,1738770638384,-450.42223452,9.933e-05,2]
[351730919,1738770638394,-89122.45740218,9.934e-05,2]
[351730920,1738770638409,-330.67,9.934e-05,2]
[351731081,1738770640212,-500.0,8.835e-05,2]
[351731083,1738770640222,-500.0,8.972e-05,2]
[351731085,1738770640232,-467.55,9.109e-05,2]
[351731087,1738770640242,-9180.857,9.934e-05,2]
[351731090,1738770640262,-94900.20895988,9.934e-05,2]
[351731092,1738770640273,-295.94,9.939e-05,2]
[351731093,1738770640283,-92522.19116241,9.943e-05,2]
[351731095,1738770640293,-2366.52180432,9.946e-05,2]
[351731097,1738770640303,-450.42223452,9.947e-05,2]
[351731099,1738770640313,-450.42223452,9.948e-05,2]
[351731101,1738770640323,-7803.65677162,9.949e-05,2]
[351731103,1738770640332,-450.42223452,9.954e-05,2]
[351731105,1738770640342,-2406.32354707,9.955e-05,2]
[351731107,1738770640355,-151898.46622114,9.956e-05,2]
[351731110,1738770640367,-613.75175729,9.956e-05,2]
[351731112,1738770640379,-403.21827523,9.956e-05,2]
[351731114,1738770640391,-40618.7571084,9.956e-05,2]
[351731116,1738770640400,-2406.32354707,9.959e-05,2]
[351731118,1738770640410,-16904.69114512,9.96e-05,2]
[351731120,1738770640420,-2406.32354707,9.963e-05,2]
[351731122,1738770640430,-16904.69114512,9.963e-05,2]
[351731124,1738770640439,-962.73456926,9.965e-05,2]
[351731126,1738770640449,-16904.69114512,9.971e-05,2]
[351731128,1738770640458,-7803.65677162,9.971e-05,2]
[351731130,1738770640467,-6605.247,9.973e-05,2]
[351731132,1738770640477,-500.0,9.973e-05,2]
[351731134,1738770640486,-500.0,9.973e-05,2]
[351731136,1738770640495,-2366.52180432,9.977e-05,2]
[351731138,1738770640504,-962.73456926,9.977e-05,2]
[351731140,1738770640513,-962.73456926,9.983e-05,2]
[351731142,1738770640522,-2406.32354707,9.984e-05,2]
[351731144,1738770640531,-5603.13633156,9.988e-05,2]
[351731146,1738770640541,-393.69097478,9.988e-05,2]
[351731168,1738770640758,-503.19789908,8.835e-05,2]
[351731170,1738770640768,-1448.55736324,9.988e-05,2]
[351731172,1738770640780,-3341.82295364,9.988e-05,2]
[351731182,1738770640864,-23009.59042858,8.836e-05,2]
[351731188,1738770640919,-1001.76767142,8.836e-05,2]
[351731190,1738770640929,-82146.79707858,9.988e-05,2]
[351731440,1738770643116,-500.0,8.835e-05,2]
[351731444,1738770643126,-500.0,8.835e-05,2]
[351731449,1738770643136,-500.0,8.835e-05,2]
[351731453,1738770643145,-500.0,8.972e-05,2]
[351731457,1738770643156,-500.0,8.972e-05,2]
[351731461,1738770643166,-500.0,8.972e-05,2]
[351731464,1738770643175,-500.0,9.109e-05,2]
[351731467,1738770643184,-500.0,9.109e-05,2]
[351731470,1738770643194,-500.0,9.246e-05,2]
[351731472,1738770643203,-500.0,9.246e-05,2]
[351731475,1738770643212,-269.89,9.383e-05,2]
[351731477,1738770643222,-500.0,9.383e-05,2]
[351731480,1738770643232,-500.0,9.52e-05,2]
[351731483,1738770643241,-500.0,9.657e-05,2]
[351731486,1738770643251,-100600.18866026,9.988e-05,2]
[351731488,1738770643260,-92522.19116241,9.989e-05,2]
[351731490,1738770643269,-16904.69114512,9.991e-05,2]
[351731492,1738770643279,-193534.19336206,9.991e-05,2]
[351731494,1738770643288,-92522.19116241,9.992e-05,2]